[Event "Chessable Masters - Torneo preliminare"]
[White "Preotu, Razvan"]
[Black "Hammer, Jon Ludvig"]
[WhiteFideId "2613280"]
[BlackFideId "1503707"]
[WhiteElo "2532"]
[BlackElo "2647"]
[Result "1-0"]
[Round "5"]
[TimeControl "600+2"]
[Date "2023.03.13"]
[WhiteClock "0:00:42"]
[BlackClock "0:00:44"]

1. e4 {[%clk 0:09:52]}  e5 {[%clk 0:09:57]} 2. Nf3 {[%clk 0:09:53]}  Nc6 {[%clk 0:09:56]} 3. Bc4 {[%clk 0:09:53]}  Nf6 {[%clk 0:09:55]} 4. d3 {[%clk 0:09:53]}  h6 {[%clk 0:09:55]} 5. c3 {[%clk 0:09:53]}  g6 {[%clk 0:09:56]} 6. d4 {[%clk 0:09:27]}  exd4 {[%clk 0:09:56]} 7. e5 {[%clk 0:09:22]}  Nh7 {[%clk 0:09:57]} 8. cxd4 {[%clk 0:09:20]}  Bg7 {[%clk 0:09:56]} 9. O-O {[%clk 0:08:22]}  O-O {[%clk 0:09:52]} 10. Nc3 {[%clk 0:08:23]}  d6 {[%clk 0:09:52]} 11. exd6 {[%clk 0:08:24]}  Qxd6 {[%clk 0:09:31]} 12. Nb5 {[%clk 0:08:21]}  Qd8 {[%clk 0:09:08]} 13. Bf4 {[%clk 0:08:10]}  Bg4 {[%clk 0:09:08]} 14. d5 {[%clk 0:07:24]}  Ne5 {[%clk 0:08:57]} 15. Be2 {[%clk 0:07:25]}  Bxf3 {[%clk 0:08:51]} 16. Bxf3 {[%clk 0:07:27]}  a6 {[%clk 0:08:33]} 17. Nc3 {[%clk 0:07:13]}  Nc4 {[%clk 0:07:45]} 18. Qb3 {[%clk 0:06:53]}  Nd6 {[%clk 0:07:36]} 19. Ne4 {[%clk 0:05:34]}  Ng5 {[%clk 0:05:58]} 20. Nxd6 {[%clk 0:04:32]}  cxd6 {[%clk 0:05:57]} 21. Qxb7 {[%clk 0:04:13]}  Nxf3+ {[%clk 0:04:28]} 22. gxf3 {[%clk 0:04:15]}  Be5 {[%clk 0:04:22]} 23. Bxe5 {[%clk 0:03:18]}  dxe5 {[%clk 0:04:23]} 24. Rad1 {[%clk 0:02:56]}  Rb8 {[%clk 0:03:41]} 25. Qxa6 {[%clk 0:02:57]}  Rxb2 {[%clk 0:03:28]} 26. d6 {[%clk 0:02:57]}  Qf6 {[%clk 0:03:04]} 27. Qa3 {[%clk 0:02:27]}  Rb5 {[%clk 0:02:56]} 28. d7 {[%clk 0:02:10]}  Rd8 {[%clk 0:02:56]} 29. Rd6 {[%clk 0:01:57]}  Qh4 {[%clk 0:02:08]} 30. Qe3 {[%clk 0:01:05]}  e4 {[%clk 0:01:24]} 31. Qxe4 {[%clk 0:00:48]}  Qh3 {[%clk 0:00:59]} 32. Rxg6+ {[%clk 0:00:42]}  fxg6 {[%clk 0:00:44]} 33. Qe8+ {[%clk 0:00:42]} 1-0


[Site "Internet"]

[Event "Chessable Masters - Torneo preliminare"]
[White "Kosteniuk, Alexandra"]
[Black "Frolyanov, Dmitry"]
[WhiteFideId "4128125"]
[BlackFideId "4151976"]
[WhiteElo "2524"]
[BlackElo "2451"]
[Result "1-0"]
[Round "5"]
[TimeControl "600+2"]
[Date "2023.03.13"]
[WhiteClock "0:00:18"]
[BlackClock "0:01:50"]

1. e4 {[%clk 0:10:01]}  e5 {[%clk 0:09:57]} 2. Nf3 {[%clk 0:10:02]}  Nf6 {[%clk 0:09:57]} 3. Nxe5 {[%clk 0:10:01]}  d6 {[%clk 0:09:57]} 4. Nf3 {[%clk 0:10:02]}  Nxe4 {[%clk 0:09:58]} 5. d3 {[%clk 0:10:00]}  Nf6 {[%clk 0:09:58]} 6. d4 {[%clk 0:10:01]}  Be7 {[%clk 0:09:59]} 7. Bd3 {[%clk 0:09:59]}  O-O {[%clk 0:10:00]} 8. O-O {[%clk 0:09:53]}  c6 {[%clk 0:09:56]} 9. Re1 {[%clk 0:09:49]}  Re8 {[%clk 0:09:52]} 10. Nbd2 {[%clk 0:09:46]}  Nbd7 {[%clk 0:09:53]} 11. Nc4 {[%clk 0:09:35]}  Nf8 {[%clk 0:09:50]} 12. a4 {[%clk 0:09:23]}  Nd5 {[%clk 0:09:16]} 13. c3 {[%clk 0:09:10]}  Be6 {[%clk 0:09:13]} 14. Qc2 {[%clk 0:09:05]}  Qd7 {[%clk 0:09:10]} 15. h4 {[%clk 0:08:27]}  h6 {[%clk 0:09:03]} 16. Bd2 {[%clk 0:07:21]}  Rad8 {[%clk 0:08:59]} 17. g3 {[%clk 0:06:45]}  Bg4 {[%clk 0:08:42]} 18. Kg2 {[%clk 0:06:11]}  Bh3+ {[%clk 0:08:41]} 19. Kh2 {[%clk 0:06:09]}  Bg4 {[%clk 0:08:41]} 20. Kg2 {[%clk 0:04:34]}  Bh3+ {[%clk 0:08:40]} 21. Kg1 {[%clk 0:04:35]}  Bg4 {[%clk 0:08:39]} 22. Nh2 {[%clk 0:04:22]}  Be6 {[%clk 0:08:40]} 23. f4 {[%clk 0:04:03]}  Nf6 {[%clk 0:08:37]} 24. Ne3 {[%clk 0:03:53]}  Nd5 {[%clk 0:08:19]} 25. Nf5 {[%clk 0:03:47]}  Bf6 {[%clk 0:07:45]} 26. Ng4 {[%clk 0:03:42]}  h5 {[%clk 0:07:36]} 27. Nxf6+ {[%clk 0:03:10]}  Nxf6 {[%clk 0:07:38]} 28. Re2 {[%clk 0:02:57]}  Bd5 {[%clk 0:06:04]} 29. Rae1 {[%clk 0:02:43]}  Rxe2 {[%clk 0:05:58]} 30. Rxe2 {[%clk 0:02:41]}  Re8 {[%clk 0:05:59]} 31. Rxe8 {[%clk 0:02:21]}  Nxe8 {[%clk 0:06:01]} 32. c4 {[%clk 0:02:20]}  Be6 {[%clk 0:05:49]} 33. Ne3 {[%clk 0:02:20]}  Bg4 {[%clk 0:05:40]} 34. d5 {[%clk 0:02:07]}  cxd5 {[%clk 0:05:29]} 35. cxd5 {[%clk 0:02:09]}  Nc7 {[%clk 0:05:01]} 36. Kf2 {[%clk 0:01:58]}  Qe7 {[%clk 0:03:49]} 37. Qc4 {[%clk 0:01:46]}  Bc8 {[%clk 0:03:20]} 38. Bc3 {[%clk 0:01:38]}  b6 {[%clk 0:02:59]} 39. Qd4 {[%clk 0:01:39]}  Ne8 {[%clk 0:03:00]} 40. Bf5 {[%clk 0:01:30]}  Qc7 {[%clk 0:02:42]} 41. Qe4 {[%clk 0:01:10]}  Qd8 {[%clk 0:02:32]} 42. Bxc8 {[%clk 0:01:07]}  Qxc8 {[%clk 0:02:34]} 43. Nf5 {[%clk 0:01:06]}  Qd7 {[%clk 0:02:22]} 44. Ne7+ {[%clk 0:01:04]}  Kh8 {[%clk 0:02:21]} 45. Nc6 {[%clk 0:00:51]}  Nh7 {[%clk 0:02:12]} 46. Qe7 {[%clk 0:00:26]}  Qxe7 {[%clk 0:02:11]} 47. Nxe7 {[%clk 0:00:28]}  Nc7 {[%clk 0:02:11]} 48. Ke3 {[%clk 0:00:26]}  Nf8 {[%clk 0:02:09]} 49. Kd4 {[%clk 0:00:23]}  g6 {[%clk 0:01:56]} 50. Nc8 {[%clk 0:00:21]}  b5 {[%clk 0:01:51]} 51. a5 {[%clk 0:00:17]}  a6 {[%clk 0:01:51]} 52. Nxd6 {[%clk 0:00:18]}  Kg8 {[%clk 0:01:50]} 53. Kc5 {[%clk 0:00:18]} 1-0


[Site "Internet"]

[Event "Chessable Masters - Torneo preliminare"]
[White "Sjugirov, Sanan"]
[Black "Steinberg, Nitzan"]
[WhiteFideId "4189302"]
[BlackFideId "2801795"]
[WhiteElo "2543"]
[BlackElo "2500"]
[Result "1-0"]
[Round "5"]
[TimeControl "600+2"]
[Date "2023.03.13"]
[WhiteClock "0:00:15"]
[BlackClock "0:00:23"]

1. e4 {[%clk 0:10:01]}  c5 {[%clk 0:10:00]} 2. Nf3 {[%clk 0:10:02]}  e6 {[%clk 0:10:02]} 3. Nc3 {[%clk 0:10:01]}  a6 {[%clk 0:09:54]} 4. g3 {[%clk 0:09:50]}  Nc6 {[%clk 0:09:51]} 5. Bg2 {[%clk 0:09:50]}  Qc7 {[%clk 0:09:27]} 6. O-O {[%clk 0:09:49]}  Nf6 {[%clk 0:09:27]} 7. d4 {[%clk 0:09:42]}  cxd4 {[%clk 0:09:28]} 8. Nxd4 {[%clk 0:09:44]}  Bc5 {[%clk 0:09:25]} 9. Nxc6 {[%clk 0:09:19]}  dxc6 {[%clk 0:09:02]} 10. Bg5 {[%clk 0:05:27]}  e5 {[%clk 0:08:52]} 11. Bxf6 {[%clk 0:05:21]}  gxf6 {[%clk 0:08:52]} 12. Qf3 {[%clk 0:05:16]}  Ke7 {[%clk 0:08:19]} 13. Qh5 {[%clk 0:05:00]}  Be6 {[%clk 0:08:09]} 14. Bh3 {[%clk 0:04:59]}  Rag8 {[%clk 0:07:58]} 15. Bxe6 {[%clk 0:04:56]}  fxe6 {[%clk 0:07:59]} 16. Rad1 {[%clk 0:04:41]}  Rg5 {[%clk 0:07:58]} 17. Qh6 {[%clk 0:04:39]}  Rg6 {[%clk 0:07:56]} 18. Qd2 {[%clk 0:04:30]}  h5 {[%clk 0:07:46]} 19. Na4 {[%clk 0:03:53]}  Ba7 {[%clk 0:07:39]} 20. Qb4+ {[%clk 0:03:54]}  c5 {[%clk 0:07:38]} 21. Qd2 {[%clk 0:03:35]}  b5 {[%clk 0:07:30]} 22. Nc3 {[%clk 0:03:35]}  c4 {[%clk 0:07:21]} 23. a4 {[%clk 0:03:11]}  h4 {[%clk 0:07:19]} 24. Kg2 {[%clk 0:03:11]}  b4 {[%clk 0:06:36]} 25. Ne2 {[%clk 0:03:10]}  a5 {[%clk 0:06:35]} 26. Ng1 {[%clk 0:02:58]}  Qc6 {[%clk 0:06:22]} 27. Nf3 {[%clk 0:02:53]}  Rgg8 {[%clk 0:05:46]} 28. Qe2 {[%clk 0:02:50]}  h3+ {[%clk 0:05:16]} 29. Kg1 {[%clk 0:02:49]}  Rd8 {[%clk 0:05:18]} 30. Nh4 {[%clk 0:01:23]}  Rdg8 {[%clk 0:04:20]} 31. Nf3 {[%clk 0:01:18]}  Bb6 {[%clk 0:04:05]} 32. b3 {[%clk 0:01:11]}  c3 {[%clk 0:03:10]} 33. Rd3 {[%clk 0:01:06]}  Rd8 {[%clk 0:03:10]} 34. Rfd1 {[%clk 0:01:01]}  Rxd3 {[%clk 0:03:01]} 35. Rxd3 {[%clk 0:01:03]}  Rd8 {[%clk 0:02:51]} 36. Rxd8 {[%clk 0:00:50]}  Kxd8 {[%clk 0:02:49]} 37. Kf1 {[%clk 0:00:45]}  Bd4 {[%clk 0:01:59]} 38. Ng1 {[%clk 0:00:38]}  f5 {[%clk 0:01:58]} 39. Nxh3 {[%clk 0:00:32]}  fxe4 {[%clk 0:01:59]} 40. Ng5 {[%clk 0:00:31]}  e3 {[%clk 0:02:00]} 41. f3 {[%clk 0:00:32]}  Qe8 {[%clk 0:01:16]} 42. Kg2 {[%clk 0:00:31]}  Ke7 {[%clk 0:00:52]} 43. h4 {[%clk 0:00:32]}  Kf6 {[%clk 0:00:47]} 44. Ne4+ {[%clk 0:00:30]}  Kg7 {[%clk 0:00:48]} 45. Qa6 {[%clk 0:00:28]}  Qd7 {[%clk 0:00:40]} 46. Kf1 {[%clk 0:00:19]}  Ba7 {[%clk 0:00:37]} 47. Ke2 {[%clk 0:00:18]}  Bd4 {[%clk 0:00:21]} 48. Qxa5 {[%clk 0:00:18]}  Qf7 {[%clk 0:00:21]} 49. Qa6 {[%clk 0:00:14]}  Kh6 {[%clk 0:00:20]} 50. Qa8 {[%clk 0:00:14]}  Qf5 {[%clk 0:00:21]} 51. Qh8+ {[%clk 0:00:14]}  Kg6 {[%clk 0:00:22]} 52. Qg8+ {[%clk 0:00:15]}  Kh6 {[%clk 0:00:22]} 53. Qg5+ {[%clk 0:00:15]}  Qxg5 {[%clk 0:00:22]} 54. Nxg5 {[%clk 0:00:15]}  Kg6 {[%clk 0:00:23]} 55. Nxe6 {[%clk 0:00:15]} 1-0


[Site "Internet"]

[Event "Chessable Masters - Torneo preliminare"]
[White "Raja, Harshit"]
[Black "Sychev, Klementy"]
[WhiteFideId "5089000"]
[BlackFideId "4114060"]
[WhiteElo "2361"]
[BlackElo "2484"]
[Result "0-1"]
[Round "5"]
[TimeControl "600+2"]
[Date "2023.03.13"]
[WhiteClock "0:06:35"]
[BlackClock "0:05:15"]

1. e4 {[%clk 0:09:48]}  e5 {[%clk 0:09:59]} 2. Nf3 {[%clk 0:09:47]}  Nc6 {[%clk 0:10:00]} 3. Bb5 {[%clk 0:09:47]}  a6 {[%clk 0:09:51]} 4. Ba4 {[%clk 0:09:47]}  Nge7 {[%clk 0:09:46]} 5. O-O {[%clk 0:09:29]}  Ng6 {[%clk 0:09:45]} 6. d4 {[%clk 0:09:14]}  exd4 {[%clk 0:09:45]} 7. Nxd4 {[%clk 0:09:15]}  Nxd4 {[%clk 0:09:46]} 8. Qxd4 {[%clk 0:09:15]}  b5 {[%clk 0:09:47]} 9. Bb3 {[%clk 0:09:15]}  Bb7 {[%clk 0:09:49]} 10. c4 {[%clk 0:08:58]}  c5 {[%clk 0:09:12]} 11. Qd1 {[%clk 0:08:55]}  b4 {[%clk 0:09:09]} 12. a3 {[%clk 0:08:38]}  Be7 {[%clk 0:09:01]} 13. axb4 {[%clk 0:08:37]}  cxb4 {[%clk 0:09:03]} 14. Be3 {[%clk 0:08:15]}  Bxe4 {[%clk 0:07:54]} 15. Qd4 {[%clk 0:08:14]}  Bb7 {[%clk 0:07:53]} 16. Qxg7 {[%clk 0:08:01]}  Qc7 {[%clk 0:07:35]} 17. Nd2 {[%clk 0:06:42]}  O-O-O {[%clk 0:07:13]} 18. Qd4 {[%clk 0:06:35]}  Nh4 {[%clk 0:05:19]} 19. f3 {[%clk 0:06:35]}  Nf5 {[%clk 0:05:15]} 0-1


[Site "Internet"]

[Event "Chessable Masters - Torneo preliminare"]
[White "Agrest, Evgenij"]
[Black "Shimanov, Aleksandr"]
[WhiteFideId "1705024"]
[BlackFideId "4198603"]
[WhiteElo "2576"]
[BlackElo "2610"]
[Result "0-1"]
[Round "5"]
[TimeControl "600+2"]
[Date "2023.03.13"]
[WhiteClock "0:00:02"]
[BlackClock "0:00:04"]

1. Nf3 {[%clk 0:09:57]}  d5 {[%clk 0:09:46]} 2. e3 {[%clk 0:09:57]}  Nf6 {[%clk 0:09:31]} 3. c4 {[%clk 0:09:53]}  e6 {[%clk 0:09:30]} 4. b3 {[%clk 0:09:50]}  Bd6 {[%clk 0:09:27]} 5. Bb2 {[%clk 0:09:47]}  b6 {[%clk 0:09:19]} 6. cxd5 {[%clk 0:09:43]}  exd5 {[%clk 0:09:20]} 7. Nc3 {[%clk 0:09:44]}  a6 {[%clk 0:09:15]} 8. Rc1 {[%clk 0:09:41]}  Bb7 {[%clk 0:09:12]} 9. Bd3 {[%clk 0:09:39]}  Nbd7 {[%clk 0:09:08]} 10. Bb1 {[%clk 0:09:32]}  Qe7 {[%clk 0:09:06]} 11. Ne2 {[%clk 0:09:23]}  g6 {[%clk 0:08:48]} 12. O-O {[%clk 0:08:21]}  O-O {[%clk 0:08:20]} 13. Re1 {[%clk 0:08:08]}  Rfe8 {[%clk 0:08:16]} 14. Ng3 {[%clk 0:07:32]}  Rac8 {[%clk 0:07:59]} 15. d3 {[%clk 0:07:28]}  c5 {[%clk 0:06:40]} 16. Nd2 {[%clk 0:06:18]}  b5 {[%clk 0:04:48]} 17. a4 {[%clk 0:05:49]}  h5 {[%clk 0:04:35]} 18. axb5 {[%clk 0:05:33]}  axb5 {[%clk 0:04:36]} 19. Nf3 {[%clk 0:05:31]}  Ng4 {[%clk 0:04:03]} 20. Nf1 {[%clk 0:04:55]}  Nf8 {[%clk 0:03:40]} 21. e4 {[%clk 0:04:25]}  dxe4 {[%clk 0:03:16]} 22. dxe4 {[%clk 0:04:24]}  Bf4 {[%clk 0:02:58]} 23. Rc2 {[%clk 0:04:18]}  Ne6 {[%clk 0:02:30]} 24. h3 {[%clk 0:03:57]}  Nf6 {[%clk 0:02:31]} 25. Rce2 {[%clk 0:03:52]}  Red8 {[%clk 0:02:23]} 26. N1d2 {[%clk 0:03:38]}  c4 {[%clk 0:02:02]} 27. bxc4 {[%clk 0:03:31]}  bxc4 {[%clk 0:02:04]} 28. Bc3 {[%clk 0:03:29]}  Nc5 {[%clk 0:01:59]} 29. Qc2 {[%clk 0:03:10]}  Nd3 {[%clk 0:01:54]} 30. Rf1 {[%clk 0:03:00]}  Nd5 {[%clk 0:01:06]} 31. Ba1 {[%clk 0:02:35]}  c3 {[%clk 0:00:35]} 32. Qxd3 {[%clk 0:02:24]}  Nb4 {[%clk 0:00:36]} 33. Qxc3 {[%clk 0:01:15]}  Rxc3 {[%clk 0:00:36]} 34. Bxc3 {[%clk 0:01:15]}  Ba6 {[%clk 0:00:37]} 35. Rfe1 {[%clk 0:01:00]}  Bxe2 {[%clk 0:00:31]} 36. Rxe2 {[%clk 0:01:01]}  Qc5 {[%clk 0:00:31]} 37. Bb2 {[%clk 0:00:50]}  Nd3 {[%clk 0:00:22]} 38. Bf6 {[%clk 0:00:38]}  Rd7 {[%clk 0:00:10]} 39. Nf1 {[%clk 0:00:31]}  Ne5 {[%clk 0:00:09]} 40. Nxe5 {[%clk 0:00:13]}  Bxe5 {[%clk 0:00:10]} 41. Bxe5 {[%clk 0:00:13]}  Qxe5 {[%clk 0:00:12]} 42. Ba2 {[%clk 0:00:13]}  Rd1 {[%clk 0:00:12]} 43. Bb3 {[%clk 0:00:12]}  Rb1 {[%clk 0:00:12]} 44. Bc4 {[%clk 0:00:10]}  Rc1 {[%clk 0:00:12]} 45. Bd3 {[%clk 0:00:10]}  Qd4 {[%clk 0:00:05]} 46. Ba6 {[%clk 0:00:09]}  Qa4 {[%clk 0:00:05]} 47. Bd3 {[%clk 0:00:07]}  Qd1 {[%clk 0:00:06]} 48. Re3 {[%clk 0:00:07]}  Kg7 {[%clk 0:00:07]} 49. g3 {[%clk 0:00:08]}  Ra1 {[%clk 0:00:07]} 50. Kg2 {[%clk 0:00:08]}  Qc1 {[%clk 0:00:07]} 51. Be2 {[%clk 0:00:09]}  Ra2 {[%clk 0:00:07]} 52. e5 {[%clk 0:00:09]}  Qc6+ {[%clk 0:00:07]} 53. Kg1 {[%clk 0:00:09]}  Qb6 {[%clk 0:00:08]} 54. Re4 {[%clk 0:00:08]}  Rb2 {[%clk 0:00:08]} 55. Kg2 {[%clk 0:00:07]}  Qc6 {[%clk 0:00:09]} 56. Bf3 {[%clk 0:00:08]}  Qc5 {[%clk 0:00:10]} 57. Ne3 {[%clk 0:00:09]}  Qc1 {[%clk 0:00:08]} 58. e6 {[%clk 0:00:08]}  Qd2 {[%clk 0:00:08]} 59. Nd1 {[%clk 0:00:08]}  Rb8 {[%clk 0:00:08]} 60. e7 {[%clk 0:00:09]}  Re8 {[%clk 0:00:09]} 61. Ne3 {[%clk 0:00:09]}  Qd6 {[%clk 0:00:09]} 62. Nc4 {[%clk 0:00:09]}  Qf6 {[%clk 0:00:10]} 63. Ne3 {[%clk 0:00:10]}  Qd6 {[%clk 0:00:09]} 64. Nc4 {[%clk 0:00:10]}  Qc5 {[%clk 0:00:08]} 65. Ne3 {[%clk 0:00:09]}  Rxe7 {[%clk 0:00:09]} 66. Rxe7 {[%clk 0:00:11]}  Qxe7 {[%clk 0:00:11]} 67. Bd5 {[%clk 0:00:12]}  h4 {[%clk 0:00:11]} 68. g4 {[%clk 0:00:12]}  Qe5 {[%clk 0:00:11]} 69. Bf3 {[%clk 0:00:12]}  Qa1 {[%clk 0:00:10]} 70. Bd5 {[%clk 0:00:13]}  f6 {[%clk 0:00:11]} 71. Bf3 {[%clk 0:00:13]}  Kf8 {[%clk 0:00:12]} 72. Be4 {[%clk 0:00:14]}  Kf7 {[%clk 0:00:13]} 73. Bf3 {[%clk 0:00:15]}  Ke6 {[%clk 0:00:14]} 74. Be4 {[%clk 0:00:16]}  Kf7 {[%clk 0:00:13]} 75. Bf3 {[%clk 0:00:16]}  Qe5 {[%clk 0:00:14]} 76. Bd5+ {[%clk 0:00:16]}  Kf8 {[%clk 0:00:14]} 77. Bf3 {[%clk 0:00:17]}  f5 {[%clk 0:00:15]} 78. gxf5 {[%clk 0:00:18]}  gxf5 {[%clk 0:00:17]} 79. Nd5 {[%clk 0:00:18]}  Kg7 {[%clk 0:00:18]} 80. Kg1 {[%clk 0:00:16]}  Kh6 {[%clk 0:00:18]} 81. Kg2 {[%clk 0:00:17]}  Kg5 {[%clk 0:00:19]} 82. Kg1 {[%clk 0:00:18]}  Qa1+ {[%clk 0:00:20]} 83. Kg2 {[%clk 0:00:19]}  Qe1 {[%clk 0:00:21]} 84. Ne3 {[%clk 0:00:19]}  Kf4 {[%clk 0:00:19]} 85. Nd5+ {[%clk 0:00:19]}  Ke5 {[%clk 0:00:20]} 86. Ne3 {[%clk 0:00:20]}  Qc1 {[%clk 0:00:20]} 87. Nd5 {[%clk 0:00:20]}  f4 {[%clk 0:00:15]} 88. Ne7 {[%clk 0:00:15]}  Qc2 {[%clk 0:00:08]} 89. Nd5 {[%clk 0:00:13]}  Qd2 {[%clk 0:00:07]} 90. Kg1 {[%clk 0:00:11]}  Kd4 {[%clk 0:00:07]} 91. Kg2 {[%clk 0:00:10]}  Qc1 {[%clk 0:00:07]} 92. Ne7 {[%clk 0:00:08]}  Kd3 {[%clk 0:00:08]} 93. Nf5 {[%clk 0:00:06]}  Kd2 {[%clk 0:00:07]} 94. Nxh4 {[%clk 0:00:05]}  Qc2 {[%clk 0:00:08]} 95. Bg4 {[%clk 0:00:05]}  Qe4+ {[%clk 0:00:05]} 96. Nf3+ {[%clk 0:00:05]}  Ke2 {[%clk 0:00:07]} 97. h4 {[%clk 0:00:03]}  Qc6 {[%clk 0:00:03]} 98. h5 {[%clk 0:00:03]}  Qb7 {[%clk 0:00:03]} 99. Kh3 {[%clk 0:00:02]}  Kxf2 {[%clk 0:00:04]} 0-1


[Site "Internet"]

[Event "Chessable Masters - Torneo preliminare"]
[White "Mikaelyan, Arman"]
[Black "Henriquez Villagra, Cristobal"]
[WhiteFideId "13304852"]
[BlackFideId "3409350"]
[WhiteElo "2456"]
[BlackElo "2574"]
[Result "0-1"]
[Round "5"]
[TimeControl "600+2"]
[Date "2023.03.13"]
[WhiteClock "0:00:13"]
[BlackClock "0:00:37"]

1. d4 {[%clk 0:10:01]}  Nf6 {[%clk 0:09:56]} 2. c4 {[%clk 0:09:29]}  e6 {[%clk 0:09:57]} 3. Nf3 {[%clk 0:09:29]}  d5 {[%clk 0:09:57]} 4. Nc3 {[%clk 0:09:30]}  c6 {[%clk 0:09:58]} 5. Bg5 {[%clk 0:09:30]}  Nbd7 {[%clk 0:09:59]} 6. cxd5 {[%clk 0:09:27]}  exd5 {[%clk 0:09:59]} 7. Qc2 {[%clk 0:09:28]}  Be7 {[%clk 0:10:00]} 8. e3 {[%clk 0:09:29]}  Nh5 {[%clk 0:09:54]} 9. Bxe7 {[%clk 0:09:13]}  Qxe7 {[%clk 0:09:56]} 10. O-O-O {[%clk 0:08:34]}  Nb6 {[%clk 0:09:47]} 11. Bd3 {[%clk 0:08:30]}  Be6 {[%clk 0:09:44]} 12. Kb1 {[%clk 0:07:52]}  O-O-O {[%clk 0:09:42]} 13. Rc1 {[%clk 0:07:42]}  Kb8 {[%clk 0:09:43]} 14. Nd2 {[%clk 0:07:40]}  Nf6 {[%clk 0:09:32]} 15. Nb3 {[%clk 0:07:19]}  Rhe8 {[%clk 0:09:01]} 16. Nc5 {[%clk 0:07:02]}  Nfd7 {[%clk 0:08:16]} 17. Ne2 {[%clk 0:06:59]}  Nxc5 {[%clk 0:08:10]} 18. dxc5 {[%clk 0:06:46]}  Nc4 {[%clk 0:07:56]} 19. Ka1 {[%clk 0:06:24]}  Qxc5 {[%clk 0:06:23]} 20. b3 {[%clk 0:06:10]}  Qa5 {[%clk 0:05:56]} 21. Nd4 {[%clk 0:05:25]}  Ne5 {[%clk 0:04:30]} 22. Bxh7 {[%clk 0:05:24]}  g6 {[%clk 0:04:07]} 23. f4 {[%clk 0:05:23]}  Ng4 {[%clk 0:03:59]} 24. f5 {[%clk 0:03:48]}  Nxe3 {[%clk 0:03:50]} 25. Qxc6 {[%clk 0:03:49]}  bxc6 {[%clk 0:03:36]} 26. Nxc6+ {[%clk 0:03:49]}  Ka8 {[%clk 0:03:36]} 27. Nxa5 {[%clk 0:03:51]}  Nxf5 {[%clk 0:03:34]} 28. Rhe1 {[%clk 0:02:52]}  Rd6 {[%clk 0:03:07]} 29. g4 {[%clk 0:02:35]}  Nd4 {[%clk 0:02:51]} 30. Red1 {[%clk 0:02:09]}  Nf3 {[%clk 0:02:43]} 31. Rc7 {[%clk 0:02:09]}  Ng5 {[%clk 0:02:34]} 32. Nc6 {[%clk 0:01:33]}  Rd7 {[%clk 0:02:23]} 33. Rxd7 {[%clk 0:01:32]}  Bxd7 {[%clk 0:02:25]} 34. Rxd5 {[%clk 0:01:33]}  Bxc6 {[%clk 0:02:05]} 35. Rxg5 {[%clk 0:01:34]}  Rh8 {[%clk 0:02:07]} 36. Bxg6 {[%clk 0:01:32]}  fxg6 {[%clk 0:02:09]} 37. Rxg6 {[%clk 0:01:33]}  Kb7 {[%clk 0:02:10]} 38. Re6 {[%clk 0:01:07]}  Rxh2 {[%clk 0:02:08]} 39. g5 {[%clk 0:01:08]}  Rg2 {[%clk 0:02:10]} 40. Re5 {[%clk 0:01:10]}  Kb6 {[%clk 0:02:07]} 41. Kb1 {[%clk 0:01:11]}  Bb5 {[%clk 0:02:06]} 42. a4 {[%clk 0:01:09]}  Bc6 {[%clk 0:01:59]} 43. Ka1 {[%clk 0:01:08]}  Kc7 {[%clk 0:01:57]} 44. Re7+ {[%clk 0:01:07]}  Kb6 {[%clk 0:01:55]} 45. Re5 {[%clk 0:01:08]}  Rd2 {[%clk 0:01:42]} 46. Kb1 {[%clk 0:01:08]}  a6 {[%clk 0:01:40]} 47. Kc1 {[%clk 0:01:08]}  Rg2 {[%clk 0:01:41]} 48. Kb1 {[%clk 0:01:08]}  Kc7 {[%clk 0:01:30]} 49. Kc1 {[%clk 0:01:09]}  Kd6 {[%clk 0:01:22]} 50. Rf5 {[%clk 0:01:10]}  Bd7 {[%clk 0:01:19]} 51. Ra5 {[%clk 0:00:58]}  Bc8 {[%clk 0:01:21]} 52. Kb1 {[%clk 0:00:46]}  Re2 {[%clk 0:01:10]} 53. Kc1 {[%clk 0:00:47]}  Kc6 {[%clk 0:01:11]} 54. b4 {[%clk 0:00:46]}  Re4 {[%clk 0:00:58]} 55. Rc5+ {[%clk 0:00:45]}  Kb7 {[%clk 0:00:57]} 56. g6 {[%clk 0:00:32]}  Rxb4 {[%clk 0:00:55]} 57. Rg5 {[%clk 0:00:24]}  Be6 {[%clk 0:00:54]} 58. g7 {[%clk 0:00:26]}  Rc4+ {[%clk 0:00:53]} 59. Kd2 {[%clk 0:00:25]}  Rc8 {[%clk 0:00:54]} 60. Ke3 {[%clk 0:00:21]}  Bg8 {[%clk 0:00:53]} 61. a5 {[%clk 0:00:18]}  Rd8 {[%clk 0:00:50]} 62. Kf4 {[%clk 0:00:10]}  Rd7 {[%clk 0:00:48]} 63. Ke4 {[%clk 0:00:10]}  Rd6 {[%clk 0:00:49]} 64. Ke5 {[%clk 0:00:06]}  Kc6 {[%clk 0:00:48]} 65. Kf4 {[%clk 0:00:05]}  Kd7 {[%clk 0:00:36]} 66. Ke5 {[%clk 0:00:05]}  Ke7 {[%clk 0:00:31]} 67. Kf4 {[%clk 0:00:05]}  Kf6 {[%clk 0:00:32]} 68. Rg1 {[%clk 0:00:03]}  Rd5 {[%clk 0:00:32]} 69. Ra1 {[%clk 0:00:03]}  Kxg7 {[%clk 0:00:32]} 70. Ke4 {[%clk 0:00:05]}  Kf6 {[%clk 0:00:32]} 71. Rg1 {[%clk 0:00:05]}  Be6 {[%clk 0:00:33]} 72. Ra1 {[%clk 0:00:07]}  Ke7 {[%clk 0:00:34]} 73. Ke3 {[%clk 0:00:07]}  Kd6 {[%clk 0:00:36]} 74. Ke4 {[%clk 0:00:09]}  Bf5+ {[%clk 0:00:36]} 75. Ke3 {[%clk 0:00:10]}  Kc5 {[%clk 0:00:36]} 76. Kf4 {[%clk 0:00:10]}  Kb5 {[%clk 0:00:35]} 77. Ke3 {[%clk 0:00:11]}  Bc2 {[%clk 0:00:36]} 78. Ra2 {[%clk 0:00:09]}  Ba4 {[%clk 0:00:37]} 79. Ke4 {[%clk 0:00:10]}  Rd7 {[%clk 0:00:38]} 80. Rb2+ {[%clk 0:00:10]}  Kxa5 {[%clk 0:00:39]} 81. Ke5 {[%clk 0:00:12]}  Bb5 {[%clk 0:00:37]} 82. Ke6 {[%clk 0:00:13]}  Kb6 {[%clk 0:00:37]} 0-1


[Site "Internet"]